{"text_format":"1","workbook":"xlsx","n_sheets":3,"sheets":["Hoja1","Hoja2","Hoja3"],"not_rendered":{"charts":0,"images":0,"macros":0,"external_links":0,"defined_names":0,"comments":0,"pivot_tables":0},"unopened":[],"bounds":{"document_bytes":16777216,"sheet_cells":100000,"rows_first":2000,"rows_last":500,"rows_between":2000,"halvings":0,"cell_chars":16384,"cell_head_chars":4096},"cells_cut":0,"cells_raw":0,"read":"whole","date_system":"1900"}

{"sheet":"Hoja1","index":0,"n_rows":34,"n_cols":20,"rows_kept":34,"cut":false,"hidden":false,"merged":[[0,1,0,15],[2,1,2,15]]}
[null,"INSTITUTO TECNOLÓGICO SUPERIOR DE PEROTE"]
[]
[null,"VIÁTICOS EJERCIDOS EN EL MES DE: ABRIL 2016"]
[]
["ÁREA","OBJETO O MOTIVO DE LA COMISIÓN","SERV. PÚB. COMISIONADOS","LUGAR DE COMISIÓN","DESTINO DE LA COMISIÓN","FECHA DE INICIO","FECHA DE TERMINO","ORIGEN DEL RECURSO","ALIMENTOS","HOSPEDAJE","PASAJES","PEAJES","TRASLADOS LOCALES","COMBUSTIBLES","IMPORTE EJERCIDO","RESPONSABLE QUE PROPORCIONA LA INFORMACIÓN"]
["PYV ","ASISTIR A ENTREGAR BASE DE DATOS DE ALUMNOS EN EL IMSS",1,"EDO.","XALAPA, VER.","2016-04-06","2016-04-06","FED.",300,null,null,222,null,200,{"$f":"SUM(I6:N6)","v":722},"REC. FINANCIEROS"]
["ACAD","ASISTIR A CONTRALORIA GENERAL A ENTREGA DE CARPETA ",1,"EDO.","XALAPA, VER.","2016-04-08","2016-04-08","FED.",300,null,null,222,null,200,{"$f":"SUM(I7:N7)","v":722},"REC. FINANCIEROS"]
["ACAD","ASISTIR A DIPLOMADO EN INDESOL",1,"EDO.","XALAPA, VER.","2016-04-09","2016-04-09","FED.",300,null,null,222,null,200,{"$f":"SUM(I8:N8)","v":722},"REC. FINANCIEROS"]
["ACAD","ASISTIR A DIPLOMADO EN INDESOL",21,"EDO.","XALAPA, VER.","2016-04-09","2016-04-09","FED.",2750,null,null,null,null,null,{"$f":"SUM(I9:N9)","v":2750},"REC. FINANCIEROS"]
["ACAD","ASISTIR A REUNION DE TRABAJO EN LA SECRETARIA DE INDESOL",1,"EDO.","XALAPA, VER.","2016-04-12","2016-04-12","FED.",300,null,null,111,null,300,711,"REC. FINANCIEROS"]
["ACAD","ASISTIR A SIMPOSIO INTERNACIONAL AGROINDUSTRIAL 2016",1,"NAC. ","MEXICO, D.F.","2016-04-13","2016-04-16","FED.",1200,2100,null,null,null,null,3300,"REC. FINANCIEROS",null,null,null," "]
["ACAD","ASISTIR A 1ER CONGRESO INTERNACIONAL MULTIDISCIPLINARIO EN UNIVERSIDAD POLITECNICA ",4,"EDO.","HUATUSCO, VER.","2016-04-12","2016-04-12","FED.",1260,null,null,222,null,400,1882,"REC. FINANCIEROS"]
["ACAD","ASISTIR A REUNION DE TRABAJO EN LA UNAM ",1,"NAC. ","MEXICO, D.F.","2016-04-14","2016-04-14","FED.",360,null,null,642,null,700,1702,"REC. FINANCIEROS"]
["ADMO","ASISTIR A ENCUENTRO DE RONDALLAS ",1,"EDO.","VERACRUZ, VER.","2016-04-15","2016-04-15","FED.",3600,null,null,668,null,732,5000,"REC. FINANCIEROS"]
["ACAD","ASISTIR A CONGRESO INTERNACIONAL MULTIDICIPLINARIO ",4,"EDO.","HUATUSCO, VER.","2016-04-15","2016-04-15","FED.",1200,null,null,222,null,500,1922,"REC. FINANCIEROS"]
["PYV ","ASISTIR A ENTREGAR Y RECOGER CEDULAS PROFESIONALES ",1,"NAC. ","MEXICO, D.F.","2016-04-19","2016-04-19","FED.",300,null,600,null,150,null,{"$f":"SUM(I16:N16)","v":1050},"REC. FINANCIEROS",null,null," "]
["ACAD","ASISTIR A LE SECRETARIA DEL TRABAJO",4,"EDO.","XALAPA, VER.","2016-04-18","2016-04-18","FED.",1200,null,null,222,null,300,1722,"REC. FINANCIEROS"]
["ACAD","ASISTIR A REUNION EN LA SECRETARIA DE INDESOL",1,"EDO.","XALAPA, VER.","2016-04-18","2016-04-18","FED.",300,null,null,111,null,300,711,"REC. FINANCIEROS"]
["ADMO","ASISTIR A CONTRALORIA GENERAL A ENTREGA DE CARPETA ",1,"EDO.","XALAPA, VER.","2016-04-20","2016-04-20","FED.",300,null,null,222,null,200,{"$f":"SUM(I19:N19)","v":722},"REC. FINANCIEROS"]
["ACAD","ASISTIR A IMPARTIR PLATICA EN COLEGIO BENAVENTE ",1,"NAC. ","PUEBLA, PUE.","2016-04-22","2016-04-22","FED.",300,null,440,null,100,null,840,"REC. FINANCIEROS"]
["ADMO","ASISTIR A CURSO MIKROTIK",2,"NAC. ","MEXICO, D.F.","2016-04-22","2016-04-23","FED.",1200,null,null,null,300,null,1500,"REC. FINANCIEROS"]
["ACAD","ASISTIR A CAPACITACION FUNDES EN HABILIDADES GERENCIALES ",5,"EDO.","XALAPA, VER.","2016-04-25","2016-04-25","FED.",1500,null,{"$f":"128*4","v":512},null,null,100,2112,"REC. FINANCIEROS"]
["ACAD","ASISTIR A REVISION DE CONVENIO A LA FACULTAD DE CIENCIAS AGRICOLAS ",2,"EDO.","XALAPA, VER.","2016-04-26","2016-04-26","FED.",650,null,null,222,null,200,1072,"REC. FINANCIEROS"]
["PYV ","ASISTIR A PRIMERA SESION DE JUNTA DIRECTIVA ",11,"EDO.","XALAPA, VER.","2016-04-26","2016-04-26","FED.",{"$f":"360*6+300*5","v":3660},null,null,{"$f":"222*7","v":1554},null,{"$f":"200*7","v":1400},6614,"REC. FINANCIEROS"]
["ADMO","ASISTIR A COMPRA DE MATERIAL DE PAPELERIA ",1,"EDO.","XALAPA, VER.","2016-04-25","2016-04-25","FED.",null,null,null,222,null,200,422,"REC. FINANCIEROS"]
["ACAD","ASISTIR A CONFERENCIAS DE SEGURIDAD INDUSTRIAL",2,"NAC. ","MEXICO, D.F.","2016-04-28","2016-04-28","FED.",600,null,null,null,null,null,600,"REC. FINANCIEROS"]
["ADMO","ASISTIR A ENTREGA DE DOCUMENTACION ",1,"EDO.","XALAPA, VER.","2016-04-29","2016-04-29","FED.",300,null,null,222,null,200,722,"REC. FINANCIEROS"]
[]
["PyV","DIRECCIÓN DE PLANEACIÓN Y VINCULACIÓN"]
["ACAD.","DIRECCIÓN ACADÉMICA"]
["SIND.","SINDICATO"]
["ADMO.","SUBDIRECCIÓN ADMINISTRATIVA"]
["FED. ","RECURSO FEDERAL"]
["I.P.","INGRESOS PROPIOS"]

{"sheet":"Hoja2","index":1,"n_rows":0,"n_cols":0,"rows_kept":0,"cut":false,"hidden":false,"merged":[]}

{"sheet":"Hoja3","index":2,"n_rows":0,"n_cols":0,"rows_kept":0,"cut":false,"hidden":false,"merged":[]}